Cogmind - Beta 15 @@@ ROGUE MODE // 2025.05.30 @ 03:41:48 Player: CL-1C0 Result: Destroyed by Y-64 Sentinel with KE Penetrator Performance ------------- Evolutions (5) 2500 Regions Visited (15) 3000 Robots Destroyed (178) 890 Value Destroyed (5752) 5752 Prototype IDs (9) 180 Alien Tech Used (0) 0 Bonus (1235) 1235 TOTAL SCORE: 13557 Bonus ------- High Alert Combat Kills 323 Follower Combat Kills 112 Registered with UFD 300 Met Optimus in HQ 500 Cogmind --------- Core Integrity 0/1000 Matter 161/300 Energy 99/100 System Corruption 3% Temperature Cool (9) Movement Core (50) Location -5/Extension Parts ------- > --- POWER (2) -------- (None) > --- PROPULSION (6) --- (None) > --- UTILITY (7) ------ Advanced Signal Interpreter Improved Melee Analysis Suite Expert System (Blank) Advanced System Shield > --- WEAPON (2) ------- (None) > --- INVENTORY (5) ---- Light Fission Core A0-MCA's Component Scanner CPS Tube (2) Companion Sword Phasing Sabre Peak State ------------ > --- POWER ------------ Light Neutrino Core Light Neutrino Core > --- PROPULSION ------- Improved VTOL Module Improved VTOL Module Improved VTOL Module Field Propulsion Drive Nuclear Pulse Array > --- UTILITY ---------- Enhanced Optical Array Improved Sensor Array Advanced Signal Interpreter Advanced Melee Analysis Suite Expert System Makeshift Hacking Suite Advanced System Shield > --- WEAPON ----------- CPS Tube Companion Sword > --- INVENTORY -------- Advanced Heat Sink Improved Melee Analysis Suite Advanced ECM Suite A0-MCA's Component Scanner Mini Grenade Launcher [Rating: 90] Favorites ----------- Power Ion Engine Engine Ion Engine Power Core Light Neutrino Core Propulsion Light Treads Treads Light Treads Leg Improved Titanium Leg Wheel Wheel Hover Unit Antigrav System Flight Unit Improved VTOL Module Utility High-capacity Storage Unit Device Improved Sensor Array Storage High-capacity Storage Unit Processor Improved Signal Interpreter Hackware Makeshift Hacking Suite Protection Layered Light Armor Plating Weapon Light Assault Rifle Energy Gun Beam Rifle Ballistic Gun Light Assault Rifle Ballistic Cannon Advanced Assault Cannon Launcher Grenade Launcher Special Weapon CPS Tube Impact Weapon Heavy Hammer Slashing Weapon Companion Sword Piercing Weapon Spear Build | -11 -10 -10 -9 -9 -9 -8 -8 -7 -7 -7 -7 -5 -5 -5 -5 ------- Run | Yrd Mat Min Mat Min Exi Min Mat Fac Sto Rec Scr Fac Was Fac Ext Slots Evolved 10 | . . . 2 . . . 2 2 . . . 4 . . . Power 1 | . . . . . . . . . . . . 1 . . . Propulsion 4 | . . . 1 . . . 1 . . . . 2 . . . Utility 5 | . . . 1 . . . 1 2 . . . 1 . . . Weapon . | . . . . . . . . . . . . . . . . Parts Attached 123 | . 4 3 11 2 1 . 34 18 15 . 9 17 1 3 5 Power 14 | . . . 1 1 . . 2 2 2 . 1 4 . . 1 Engine 7 | . . . 1 1 . . 1 2 2 . . . . . . Core 7 | . . . . . . . 1 . . . 1 4 . . 1 Reactor . | . . . . . . . . . . . . . . . . Propulsion 42 | . . . 3 . . . 17 6 6 . 5 3 . 1 1 Treads 19 | . . . 3 . . . 12 4 . . . . . . . Leg 6 | . . . . . . . . . 5 . 1 . . . . Wheel 5 | . . . . . . . 2 2 1 . . . . . . Hover 4 | . . . . . . . 2 . . . . 2 . . . Flight 8 | . . . . . . . 1 . . . 4 1 . 1 1 Utility 35 | . 3 . 3 . 1 . 6 5 3 . . 9 1 1 3 Device 13 | . 1 . 1 . 1 . 1 2 1 . . 4 . . 2 Storage 1 | . 1 . . . . . . . . . . . . . . Processor 12 | . 1 . 2 . . . 2 1 . . . 4 . 1 1 Hackware 3 | . . . . . . . . 1 . . . 1 1 . . Protection 6 | . . . . . . . 3 1 2 . . . . . . Artifact . | . . . . . . . . . . . . . . . . Weapon 32 | . 1 3 4 1 . . 9 5 4 . 3 1 . 1 . Energy Gun 4 | . . . 2 . . . 2 . . . . . . . . Energy Cannon . | . . . . . . . . . . . . . . . . Ballistic Gun 16 | . 1 2 1 . . . 6 2 2 . 2 . . . . Ballistic Cannon 1 | . . . . . . . . . 1 . . . . . . Launcher 4 | . . 1 . 1 . . . 1 . . . . . 1 . Special Weapon 1 | . . . . . . . . . . . . 1 . . . Impact Weapon 2 | . . . 1 . . . . . 1 . . . . . . Slashing Weapon 3 | . . . . . . . . 2 . . 1 . . . . Piercing Weapon 1 | . . . . . . . 1 . . . . . . . . Special Melee Weapon . | . . . . . . . . . . . . . . . . Unidentified Prototypes 9 | . . . . . 1 . 3 2 . . 1 2 . . . Parts Lost 41 | . . . 4 . . . 12 7 5 . . . . 8 5 Power 5 | . . . 1 . . . 1 1 1 . . . . 1 . Propulsion 19 | . . . . . . . 7 6 . . . . . 4 2 Utility 9 | . . . 1 . . . . . 3 . . . . 2 3 Weapon 8 | . . . 2 . . . 4 . 1 . . . . 1 . Highest Loss Streak 8 | . . . 2 . . . 4 3 3 . . . . 8 4 To Critical Strikes 1 | . . . . . . . . . . . . . . . 1 Average Backups 17 | 6 15 20 18 19 18 19 19 19 19 19 14 11 4 4 4 Power 1 | 1 1 1 . 1 4 5 3 1 1 2 1 . . . . Propulsion 4 | 4 7 8 4 3 2 2 3 5 5 6 3 2 . . . Utility 4 | . 2 4 6 5 5 5 5 4 1 2 4 4 3 3 2 Weapon 5 | 1 4 6 6 9 6 6 5 7 9 8 3 1 1 . . Tool/Special . | . . . . . . . . . . . . . . . . Unused Backups 40 | . . . 4 4 2 . 13 1 1 . 5 8 . . 2 Power 4 | . . . . . . . 3 . . . 1 . . . . Propulsion 9 | . . . 3 2 . . 3 . . . 1 . . . . Utility 11 | . . . . 2 . . 4 1 . . 1 2 . . 1 Weapon 12 | . . . 1 . 2 . 3 . 1 . 2 2 . . 1 Tool/Special 4 | . . . . . . . . . . . . 4 . . . Average Slot Usage (%) 95 | . 97 100 94 100 100 100 97 95 95 100 96 91 94 93 45 Engine 6 | . 14 14 8 11 11 11 6 6 6 7 1 . . . . Core 2 | . . . . . . . 2 . . . 4 7 11 10 . Treads 16 | . . . 31 33 33 33 32 26 6 . . . . . . Leg 8 | . 28 28 . . . . . . 16 30 23 11 . . . Flight 3 | . . . . . . . . . . . 6 13 29 28 5 Device 6 | . 3 . 6 11 11 11 . 10 12 7 7 10 12 6 4 Storage 7 | . 14 14 11 11 11 11 9 7 7 7 5 2 . . . Processor 15 | . 7 14 14 11 11 11 17 17 15 15 15 14 17 21 22 Hackware 1 | . . . . . . . . 3 . . . 2 9 10 5 Protection 5 | . . . . . . . 8 4 7 15 13 7 . . . Energy Gun 3 | . . . 10 13 11 11 2 . . . 4 1 . . . Ballistic Gun 8 | . 27 27 9 . . . 11 5 8 7 5 . . . . Launcher 1 | . . . . 8 11 11 1 2 . . . . . . . Slashing Weapon 1 | . . . . . . . . 3 2 . 1 5 5 5 4 Peak Build Rating 90 | 6 9 9 13 16 22 22 31 47 56 56 59 86 88 90 60 Average Rating 37 | 6 8 9 11 13 18 22 25 38 49 55 52 77 87 87 42 On Entrance 35 | 6 6 9 9 13 16 22 22 28 47 55 56 59 86 88 38 Naked Turns . | . . . . . . . . . . . . . . . . Heaviest Build 80 | 13 48 47 52 52 58 58 58 74 77 70 70 80 24 25 12 Greatest Support 83 | 20 20 20 60 60 60 60 83 80 80 80 80 80 36 36 12 Greatest Overweight (x) 7 | . 2 2 . . . . 2 7 7 . 1 . . . 1 Average Overweight (x) . | . 1 2 . . . . . . 1 . . . . . . Largest Inventory Capacity 20 | 8 20 20 20 20 20 20 20 20 20 20 20 20 5 5 5 Average Capacity 17 | 8 18 20 20 20 20 20 20 20 20 20 16 12 5 5 5 Most Carried 20 | 6 20 20 20 20 19 19 20 20 20 20 20 20 5 5 5 Average Carried 17 | 6 15 20 18 19 18 19 19 19 19 19 15 12 5 4 4 Final Capacity 20 | 8 20 20 20 20 20 20 20 20 20 20 20 5 5 5 5 Final Carried 20 | 6 20 20 20 19 19 19 20 20 19 20 20 5 5 5 5 Class Distribution -------------------- 65% | Mutant 22% | Scavenger-Mutant 5% | Hacker-Scout 4% | Sprinter Dominant Class ---------------- Mutant | -10/Materials Mutant | -10/Mines Mutant | -9/Materials Mutant | -9/Mines Mutant | -9/Exiles Mutant | -8/Mines Scavenger-Mutant | -8/Materials Mutant | -7/Factory Mutant | -7/Storage Mutant | -7/Recycling Mutant | -7/Scraptown Mutant | -5/Factory Hacker-Sprinter | -5/Waste Hacker-Scout | -5/Factory Scout | -5/Extension Resources | -11 -10 -10 -9 -9 -9 -8 -8 -7 -7 -7 -7 -5 -5 -5 -5 ----------- Run | Yrd Mat Min Mat Min Exi Min Mat Fac Sto Rec Scr Fac Was Fac Ext Matter Collected 3905 | 193 127 126 277 87 . . 1060 682 750 242 170 141 . 20 30 Remotely . | . . . . . . . . . . . . . . . . Salvage Created 5439 | . 165 9 323 323 . . 1843 1199 1263 . . 205 . 79 30 Parts 289 | . 9 3 14 27 . . 92 63 65 . . 6 . 8 2 Haulers Intercepted 4 | . . . . . . . 3 . . . . 1 . . . Recyclers Shooed 18 | . . . . . . . 1 7 8 . . . . . 2 Parts Field Recycled . | . . . . . . . . . . . . . . . . Retrieved Matter . | . . . . . . . . . . . . . . . . Parts Self-Destructed . | . . . . . . . . . . . . . . . . Prevented . | . . . . . . . . . . . . . . . . Kills | -11 -10 -10 -9 -9 -9 -8 -8 -7 -7 -7 -7 -5 -5 -5 -5 ------- Run | Yrd Mat Min Mat Min Exi Min Mat Fac Sto Rec Scr Fac Was Fac Ext Combat Hostiles Destroyed 126 | . 4 3 6 14 . . 39 22 33 . . 2 . 3 . Melee 11 | . . . . . . . 1 3 5 . . 2 . . . Guns 54 | . 4 1 5 6 . . 21 9 8 . . . . . . Cannons 3 | . . . . . . . . . 3 . . . . . . AOE 57 | . . 2 . 8 . . 17 10 17 . . . . 3 . Classes Destroyed 19 | . 1 1 3 3 . . 7 2 1 . . . . 1 . Worker 11 | . . . . 1 . . 6 2 2 . . . . . . Builder 15 | . . . . . . . 4 7 3 . . . . . 1 Tunneler 2 | . . . . 2 . . . . . . . . . . . Hauler 4 | . . . . . . . 3 . . . . 1 . . . Recycler 10 | . . . . . . . 2 5 3 . . . . . . Mechanic 2 | . . . 1 . . . . . 1 . . . . . . Operator 3 | . . . 1 . . . . 1 . . . . . 1 . Watcher 5 | . . . . . . . 2 2 1 . . . . . . Swarmer 23 | . . 3 . 8 . . 3 3 6 . . . . . . Cutter 3 | . . . . . . . . . . . . . . 3 . Grunt 59 | . 4 . 4 4 . . 19 12 16 . . . . . . Brawler 4 | . . . . . . . 1 . 3 . . . . . . Duelist 4 | . . . . 2 . . . 1 1 . . . . . . Protector 1 | . . . . . . . . . 1 . . . . . . Sentry 18 | . . . 2 . . . 9 2 5 . . . . . . Specialist 2 | . . . . . . . 2 . . . . . . . . Hunter 5 | . . . . . . . 5 . . . . . . . . Programmer 6 | . . . . . . . . 3 1 . . 2 . . . Heavy 1 | . . . . . . . . 1 . . . . . . . Best Kill Streak 14 | . 2 3 3 6 . . 14 9 13 . . 2 . 3 1 Combat Bots Only 12 | . 2 3 3 4 . . 7 6 12 . . 2 . 3 . Max Kills in Single Turn 4 | . 1 1 2 4 . . 4 3 4 . . 1 . 3 1 Gunslinging 1 | . . . 1 . . . . . . . . . . . . Exploded 3 | . . 1 . 3 . . 3 3 3 . . . . 3 . Melee 1 | . . . . . . . 1 1 1 . . 1 . . . Uniques/NPCs Destroyed . | . . . . . . . . . . . . . . . . Combat | -11 -10 -10 -9 -9 -9 -8 -8 -7 -7 -7 -7 -5 -5 -5 -5 -------- Run | Yrd Mat Min Mat Min Exi Min Mat Fac Sto Rec Scr Fac Was Fac Ext Hostile Shots Fired 935 | . 33 15 49 32 . . 218 171 275 . . 24 . 73 45 Missed 320 | . 10 5 10 12 . . 59 57 106 . . 7 . 38 16 Hits 615 | . 23 10 39 20 . . 159 114 169 . . 17 . 35 29 Melee 6 | . . . . . . . . 4 2 . . . . . . Projectile 609 | . 23 10 39 20 . . 159 110 167 . . 17 . 35 29 AOE 1 | . . . . . . . . . . . . . . 1 . Critical Strikes 20 | . 1 1 1 . . . 4 4 2 . . 3 . 1 3 Damage Taken 8755 | . 311 157 552 222 . . 2183 1693 1595 . . 334 . 923 785 Core 1860 | . 121 33 98 47 . . 250 183 117 . . 22 . 363 626 Absorbed by Shields 71 | . . . . . . . . . 34 . . . . 37 . Redirected to Shielding 51 | . . . . . . . 51 . . . . . . . . Core Remaining (%) 62 | 100 . 38 . . . 63 54 . . . 57 . . . . Volleys Fired 296 | . 20 7 30 17 . . 96 50 74 . . . . 2 . Largest 2 | . 2 2 2 2 . . 2 2 2 . . . . 1 . Hottest 121 | . 40 40 121 121 . . 84 89 58 . . . . 30 . Shots Fired 490 | . 40 11 56 29 . . 165 77 110 . . . . 2 . Gun 394 | . 40 8 56 24 . . 139 57 70 . . . . . . Cannon 22 | . . . . . . . . . 22 . . . . . . Launcher 74 | . . 3 . 5 . . 26 20 18 . . . . 2 . Special . | . . . . . . . . . . . . . . . . Kinetic 348 | . 40 8 33 . . . 127 48 92 . . . . . . Thermal 68 | . . . 23 24 . . 12 9 . . . . . . . Explosive 74 | . . 3 . 5 . . 26 20 18 . . . . 2 . Electromagnetic . | . . . . . . . . . . . . . . . . Robot Hit Streak 43 | . 9 1 13 8 . . 20 43 20 . . . . . . Robot Miss Streak 4 | . 3 4 2 2 . . 2 2 2 . . . . . . Penetration Max 1 | . . . . . . . . . 1 . . . . . . Secondary Targets 6 | . . . 1 1 . . 2 1 1 . . . . . . Max Gunslinging Chain 1 | . . . 1 1 . . 1 1 1 . . . . . . Shots Hit Robots 422 | . 24 1 49 20 . . 136 82 97 . . 9 . 1 3 Core Hits 322 | . 14 3 16 22 . . 103 67 84 . . 4 . 8 1 Critical Kills . | . . . . . . . . . . . . . . . . Critical Parts Destroyed 3 | . . . . . . . 1 . 2 . . . . . . Critical Strikes 19 | . . . . 2 . . 6 3 6 . . 2 . . . Burn 7 | . . . . 2 . . 3 2 . . . . . . . Destroy 3 | . . . . . . . 1 . 2 . . . . . . Blast 2 | . . . . . . . . . 2 . . . . . . Sever 3 | . . . . . . . . 1 2 . . . . . . Impale 2 | . . . . . . . 2 . . . . . . . . Melee Attacks 128 | . . . 2 . . . 10 54 22 . . 19 . 17 4 Impact 9 | . . . 2 . . . . . 7 . . . . . . Slashing 92 | . . . . . . . . 37 15 . . 19 . 17 4 Piercing 27 | . . . . . . . 10 17 . . . . . . . Sneak Attacks 25 | . . . . . . . 5 13 3 . . 1 . 1 2 Combat Hostiles 4 | . . . . . . . . 4 . . . . . . . Follow-up Attacks . | . . . . . . . . . . . . . . . . Damage Inflicted 15732 | . 189 151 586 760 . 8 4288 3538 5341 11 . 448 . 196 216 Guns 5066 | . 188 8 548 301 . . 1749 902 1370 . . . . . . Cannons 485 | . . . . . . . . . 485 . . . . . . Explosions 7455 | . . 143 . 457 . . 2112 1683 2946 . . . . 114 . Melee 2620 | . . . 30 . . . 396 938 510 . . 448 . 82 216 Ramming 106 | . 1 . 8 2 . 8 31 15 30 11 . . . . . Kinetic 4702 | . 188 8 251 . . . 1623 777 1855 . . . . . . Thermal 849 | . . . 297 301 . . 126 125 . . . . . . . Explosive 7455 | . . 143 . 457 . . 2112 1683 2946 . . . . 114 . Electromagnetic . | . . . . . . . . . . . . . . . . Impact 30 | . . . 30 . . . . . . . . . . . . Slashing 2008 | . . . . . . . . 752 510 . . 448 . 82 216 Piercing 582 | . . . . . . . 396 186 . . . . . . . Highest Corruption 6 | . . . . . . . . 2 3 3 . 6 1 3 3 Average Corruption 2 | . . . . . . . . 1 2 3 . 2 1 1 3 Corruption Purged 8 | . . . . . . . . 2 . . . 5 1 . . Corruption Blocked . | . . . . . . . . . . . . . . . . Effects 29 | . . . . . . . . 3 8 8 . 7 . . 3 Message Errors 5 | . . . . . . . . . 2 1 . 2 . . . Matter Fused 5 | . . . . . . . . 1 1 1 . 1 . . 1 Heat Flow Errors 6 | . . . . . . . . 1 . 2 . 2 . . 1 Energy Discharges 2 | . . . . . . . . . 1 . . . . . 1 Parts Rejected 1 | . . . . . . . . . 1 . . . . . . Parts Fused 2 | . . . . . . . . . . 2 . . . . . Data Loss (minor) 4 | . . . . . . . . . 1 1 . 2 . . . Data Loss (major) 1 | . . . . . . . . . . 1 . . . . . Misfires 3 | . . . . . . . . 1 2 . . . . . . Overload Shots . | . . . . . . . . . . . . . . . . Overflow Damage 356 | . . . . . . . 127 105 88 . . . . . 36 Projectiles . | . . . . . . . . . . . . . . . . Explosions 95 | . . . . . . . 35 45 15 . . . . . . Melee 261 | . . . . . . . 92 60 73 . . . . . 36 Knockbacks 4 | . . . . . . . . . 4 . . . . . . Impact 1 | . . . . . . . . . 1 . . . . . . Kinetic 3 | . . . . . . . . . 3 . . . . . . Secondary . | . . . . . . . . . . . . . . . . Self-Inflicted Damage 183 | . . 77 . 24 . . . 44 . . . . . 38 . Shots 7 | . . 3 . 1 . . . 2 . . . . . 1 . Rammed 11 | . . . 1 1 . 1 6 2 . . . . . . . Targets Rammed 20 | . 1 . 1 1 . 1 7 3 5 1 . . . . . Kicked 7 | . 1 . . . . . . . 5 1 . . . . . Crushed 2 | . . . . . . . 1 1 . . . . . . . Highest Temperature 273 | . 18 . 132 228 . . 129 100 28 84 . 273 . 97 199 Average Temperature 36 | . 9 . 35 96 . . 24 18 12 46 . 129 . 22 104 Received Heat Transfer 2509 | . 198 . 240 78 . . 747 516 430 . . . . 144 156 Siege Activations . | . . . . . . . . . . . . . . . . Martial Activations . | . . . . . . . . . . . . . . . . Shielding Activations . | . . . . . . . . . . . . . . . . Robots Disrupted . | . . . . . . . . . . . . . . . . Combat Hostiles . | . . . . . . . . . . . . . . . . Robots Corrupted . | . . . . . . . . . . . . . . . . Combat Hostiles . | . . . . . . . . . . . . . . . . Parts Fried 1 | . . . 1 . . . . . . . . . . . . Impact Corruptions 1 | . . . 1 . . . . . . . . . . . . Robots Melted 1 | . . . 1 . . . . . . . . . . . . Combat Hostiles 1 | . . . 1 . . . . . . . . . . . . Parts Melted 7 | . . . 4 2 . . 1 . . . . . . . . Heat Transferred 2516 | . . . 740 888 . . 518 370 . . . . . . . Parts Sabotaged . | . . . . . . . . . . . . . . . . Parts Stolen . | . . . . . . . . . . . . . . . . Parts Stripped . | . . . . . . . . . . . . . . . . Power Chain Reactions . | . . . . . . . . . . . . . . . . Alert | -11 -10 -10 -9 -9 -9 -8 -8 -7 -7 -7 -7 -5 -5 -5 -5 ------- Run | Yrd Mat Min Mat Min Exi Min Mat Fac Sto Rec Scr Fac Was Fac Ext Maximum Alert Level 3 | . . . . 1 . . 2 2 3 1 . . . . . Low Security (%) 62 | 100 100 100 100 65 . 100 20 83 10 . . 100 100 100 100 Level 1 24 | . . . . 34 . . 46 14 30 100 . . . . . Level 2 12 | . . . . . . . 32 2 52 . . . . . . Level 3 . | . . . . . . . . . 6 . . . . . . Level 4 . | . . . . . . . . . . . . . . . . Level 5 . | . . . . . . . . . . . . . . . . High Security . | . . . . . . . . . . . . . . . . Max Security . | . . . . . . . . . . . . . . . . Peak Influence 753 | . 50 89 70 261 . . 519 420 753 287 . 40 30 103 35 Initial 287 | . . . . 9 . . . 228 189 287 . . . . 28 Average 179 | . 7 19 17 161 . . 324 148 481 253 . 10 8 3 14 Influence Increases 4528 | . 111 89 199 474 . . 1216 904 988 150 . 104 30 236 27 Destroy 0b10 Robot/C 2600 | . 80 60 120 340 . . 780 480 640 . . 40 . 60 . Destroy 0b10 Robot/NC 265 | . . . 10 15 . . 85 85 55 . . 5 . 5 5 Destroy Leader 608 | . 20 10 40 50 . . 210 104 152 . . 12 . 10 . Allied During Kill 30 | . . . . 13 . . 3 10 4 . . . . . . Successful Hack 164 | . 11 . 14 . . . 8 79 . . . 7 . 38 7 Select Force Hacks 150 | . . . . . . . . . . 150 . . . . . Disable Machine 120 | . . . 15 . . . . 45 30 . . 15 . . 15 Destroy Structure 411 | . . 19 . 26 . . 100 101 107 . . 10 . 48 . Partial Spotted 75 | . . . . . . . 15 . . . . 15 30 15 . Lose Combat Pursuer 105 | . . . . 30 . . 15 . . . . . . 60 . Influence Decreases 4528 | . 111 89 174 353 146 . 712 992 667 656 231 104 30 178 85 Entered New Map 1376 | . . . . 16 146 . . 276 227 450 231 . . . 30 Time Decay 2667 | . 111 89 154 317 . . 572 616 350 206 . 104 10 98 40 Lost Part 350 | . . . 20 . . . 120 70 50 . . . . 80 10 Lost Ally 135 | . . . . 20 . . 20 30 40 . . . 20 . 5 Squads Dispatched 33 | . . . 2 . . . 6 11 11 . . 1 . 2 . Investigation 4 | . . . 1 . . . 2 1 . . . . . . . Extermination 7 | . . . . . . . . 4 2 . . . . 1 . Reinforcement 15 | . . . 1 . . . 3 6 3 . . 1 . 1 . Assault 2 | . . . . . . . . . 2 . . . . . . Garrison 5 | . . . . . . . 1 . 4 . . . . . . Intercept . | . . . . . . . . . . . . . . . . Searches Triggered . | . . . . . . . . . . . . . . . . Construction Impeded 3 | . . . . . . . 1 2 . . . . . . . Haulers Reinforced 2 | . . . . . . . . . 1 . . 1 . . . Active Scanning Responses . | . . . . . . . . . . . . . . . . Cargo Convoy Interrupts 1 | . . . . . . . . 1 . . . . . . . Stealth | -11 -10 -10 -9 -9 -9 -8 -8 -7 -7 -7 -7 -5 -5 -5 -5 --------- Run | Yrd Mat Min Mat Min Exi Min Mat Fac Sto Rec Scr Fac Was Fac Ext Distress Signals 9 | . . . 1 . . . 3 2 1 . . . . 1 1 Communications Jammed . | . . . . . . . . . . . . . . . . Distress Signals . | . . . . . . . . . . . . . . . . Times Spotted 215 | . 11 3 13 18 . . 54 28 42 . . 2 6 26 12 Peak Tracking Total 21 | . 3 3 3 4 . . 6 5 12 . . 2 6 21 11 Tactical Retreats 5 | . . . . 1 . . 1 . . . . . . 3 . Traps | -11 -10 -10 -9 -9 -9 -8 -8 -7 -7 -7 -7 -5 -5 -5 -5 ------- Run | Yrd Mat Min Mat Min Exi Min Mat Fac Sto Rec Scr Fac Was Fac Ext Traps Triggered 13 | . . . 1 . . . 2 6 1 . . 1 . 1 1 Indirectly . | . . . . . . . . . . . . . . . . Trap Hack Attempts . | . . . . . . . . . . . . . . . . Triggered . | . . . . . . . . . . . . . . . . Disarmed . | . . . . . . . . . . . . . . . . Reprogrammed . | . . . . . . . . . . . . . . . . Reused . | . . . . . . . . . . . . . . . . Traps Extracted . | . . . . . . . . . . . . . . . . Installed . | . . . . . . . . . . . . . . . . Triggered . | . . . . . . . . . . . . . . . . Machines | -11 -10 -10 -9 -9 -9 -8 -8 -7 -7 -7 -7 -5 -5 -5 -5 ---------- Run | Yrd Mat Min Mat Min Exi Min Mat Fac Sto Rec Scr Fac Was Fac Ext Machines Disabled 8 | . . . 1 . . . . 3 2 . . 1 . . 1 Max in Single Turn 1 | . . . 1 . . . . 1 1 . . 1 . . 1 Garrison Access 2 | . . . . . . . 1 . . . . . . 1 . Machines Repaired . | . . . . . . . . . . . . . . . . Machines Dismantled . | . . . . . . . . . . . . . . . . Machines Sabotaged . | . . . . . . . . . . . . . . . . Overloaded Fab Kills . | . . . . . . . . . . . . . . . . Hacking | -11 -10 -10 -9 -9 -9 -8 -8 -7 -7 -7 -7 -5 -5 -5 -5 --------- Run | Yrd Mat Min Mat Min Exi Min Mat Fac Sto Rec Scr Fac Was Fac Ext Machines Accessed 51 | . 3 . 1 1 1 . 7 10 3 5 4 5 . 7 4 Terminals 32 | . 3 . 1 . . . 6 9 2 . . 2 . 5 4 Fabricators 3 | . . . . . . . . 1 . . . 1 . 1 . Repair Stations . | . . . . . . . . . . . . . . . . Recycling Units 6 | . . . . . . . . . . 5 . 1 . . . Scanalyzers . | . . . . . . . . . . . . . . . . Garrison Access 4 | . . . . . . . 1 . 1 . . 1 . 1 . Total Hacks 108 | . 7 . 2 1 1 . 13 25 3 9 15 10 . 17 5 Successful 55 | . 3 . 2 1 1 . 2 11 1 5 15 3 . 9 2 Failed 53 | . 4 . . . . . 11 14 2 4 . 7 . 8 3 Catastrophic 19 | . 2 . . . . . 5 3 1 2 . 3 . 3 . Database Lockouts . | . . . . . . . . . . . . . . . . Manual 71 | . 4 . 2 . . . 9 20 3 9 . 5 . 16 3 Terminals 69 | . 7 . 2 . . . 12 24 2 . . 5 . 12 5 Fabricators 6 | . . . . . . . . 1 . . . 1 . 4 . Repair Stations . | . . . . . . . . . . . . . . . . Recycling Units 11 | . . . . . . . . . . 9 . 2 . . . Scanalyzers . | . . . . . . . . . . . . . . . . Garrison Access 5 | . . . . . . . 1 . 1 . . 2 . 1 . Terminal Hacks 34 | . 3 . 2 1 1 . 1 5 1 . 15 1 . 2 2 Record 11 | . . . . . 1 . . . . . 10 . . . . Robot Analysis 7 | . 3 . . . . . . . . . 4 . . . . Open Door 5 | . . . . 1 . . . . 1 . 1 . . . 2 Branch Access Points 5 | . . . 1 . . . 1 1 . . . 1 . 1 . Terminal Index 3 | . . . 1 . . . . 1 . . . . . 1 . Recall Extermination 1 | . . . . . . . . 1 . . . . . . . Recall Reinforcements 1 | . . . . . . . . 1 . . . . . . . Zone Layout 1 | . . . . . . . . 1 . . . . . . . Fabricator Hacks . | . . . . . . . . . . . . . . . . Repair Station Hacks . | . . . . . . . . . . . . . . . . Recycling Unit Hacks . | . . . . . . . . . . . . . . . . Scanalyzer . | . . . . . . . . . . . . . . . . Garrison Access Hacks 2 | . . . . . . . 1 . . . . . . 1 . Seal Access 2 | . . . . . . . 1 . . . . . . 1 . Unauthorized Hacks 19 | . . . . . . . . 6 . 5 . 2 . 6 . Terminals 9 | . . . . . . . . 6 . . . . . 3 . Assimilate 3 | . . . . . . . . 2 . . . . . 1 . Botnet 4 | . . . . . . . . 3 . . . . . 1 . Operators 2 | . . . . . . . . 1 . . . . . 1 . Fabricators 3 | . . . . . . . . . . . . . . 3 . Liberate 1 | . . . . . . . . . . . . . . 1 . Fabnet 1 | . . . . . . . . . . . . . . 1 . Haulers 1 | . . . . . . . . . . . . . . 1 . Repair Stations . | . . . . . . . . . . . . . . . . Recycling Units 7 | . . . . . . . . . . 5 . 2 . . . Reject 1 | . . . . . . . . . . . . 1 . . . Recyclers 1 | . . . . . . . . . . . . 1 . . . Tunnel 5 | . . . . . . . . . . 5 . . . . . Scanalyzers . | . . . . . . . . . . . . . . . . Garrison Access . | . . . . . . . . . . . . . . . . Data Cores Recovered 1 | . . . . . . . . . . . . . . 1 . Used 1 | . . . . . . . . . . . . . . 1 . Hacking Detections 36 | . 3 . 1 . . . 6 10 2 3 . 4 . 5 2 Full Trace Events . | . . . . . . . . . . . . . . . . Feedback Events . | . . . . . . . . . . . . . . . . Feedback Blocked . | . . . . . . . . . . . . . . . . Robot Schematics Acquired . | . . . . . . . . . . . . . . . . Robots Built . | . . . . . . . . . . . . . . . . Authchips . | . . . . . . . . . . . . . . . . Time . | . . . . . . . . . . . . . . . . Total Robot Build Rating . | . . . . . . . . . . . . . . . . Part Schematics Acquired . | . . . . . . . . . . . . . . . . Parts Built . | . . . . . . . . . . . . . . . . Authchips . | . . . . . . . . . . . . . . . . Time . | . . . . . . . . . . . . . . . . Total Part Build Rating . | . . . . . . . . . . . . . . . . Parts Repaired . | . . . . . . . . . . . . . . . . Time . | . . . . . . . . . . . . . . . . Parts Recycled . | . . . . . . . . . . . . . . . . Recycled Matter . | . . . . . . . . . . . . . . . . Retrieved Matter . | . . . . . . . . . . . . . . . . Retrieved Components . | . . . . . . . . . . . . . . . . Parts Scanalyzed . | . . . . . . . . . . . . . . . . Part Schematics Acquired . | . . . . . . . . . . . . . . . . Parts Damaged . | . . . . . . . . . . . . . . . . Bothacking | -11 -10 -10 -9 -9 -9 -8 -8 -7 -7 -7 -7 -5 -5 -5 -5 ------------ Run | Yrd Mat Min Mat Min Exi Min Mat Fac Sto Rec Scr Fac Was Fac Ext Used RIF Installer . | . . . . . . . . . . . . . . . . Robots Hacked . | . . . . . . . . . . . . . . . . Non-combat . | . . . . . . . . . . . . . . . . Combat . | . . . . . . . . . . . . . . . . Robot Hacks Applied . | . . . . . . . . . . . . . . . . Relay Couplers Released . | . . . . . . . . . . . . . . . . Fabnet Peak Effective % . | . . . . . . . . . . . . . . . . Robots Rewired . | . . . . . . . . . . . . . . . . Allies Hacked . | . . . . . . . . . . . . . . . . Hacks Repelled . | . . . . . . . . . . . . . . . . Allies | -11 -10 -10 -9 -9 -9 -8 -8 -7 -7 -7 -7 -5 -5 -5 -5 -------- Run | Yrd Mat Min Mat Min Exi Min Mat Fac Sto Rec Scr Fac Was Fac Ext Total Allies 12 | . . . . 3 . . 1 3 2 . . . 1 . 2 Largest Group 3 | . . . . 3 1 . 1 1 2 . . . 1 . 1 Highest-Rated Group 90 | . . . . 81 31 . 18 90 62 . . . 31 . 25 Highest-Rated Ally 90 | . . . . 31 31 . 18 90 31 . . . 31 . 25 Total Orders . | . . . . . . . . . . . . . . . . Ally Attacks 37 | . . . . 5 . . 3 11 10 . . . 8 . . Total Damage 549 | . . . . 86 . . 16 146 135 . . . 166 . . Kills 5 | . . . . 3 . . . 2 . . . . . . . Allies Corrupted . | . . . . . . . . . . . . . . . . Allies Melted . | . . . . . . . . . . . . . . . . Intel | -11 -10 -10 -9 -9 -9 -8 -8 -7 -7 -7 -7 -5 -5 -5 -5 ------- Run | Yrd Mat Min Mat Min Exi Min Mat Fac Sto Rec Scr Fac Was Fac Ext Active Infowar (turns) 4493 | . . . . . . . 968 2046 506 . . 73 29 750 121 Optics 1653 | . . . . . . . 968 . . . . . . 564 121 Sensors 3525 | . . . . . . . 60 2046 506 . . 72 29 732 80 IFF 19 | . . . . . . . . . . . . . . . 19 ECM 96 | . . . . . . . . . . . . 1 . 95 . Robot Analysis Total 7 | . 3 . . . . . . . . . 4 . . . . Derelict Logs Recovered 1 | . . . . 1 . . . . . . . . . . . Drone Launches 14 | . . . . . . . 3 9 2 . . . . . . Drone Recoveries 11 | . . . . . . . 2 7 2 . . . . . . Exploration | -11 -10 -10 -9 -9 -9 -8 -8 -7 -7 -7 -7 -5 -5 -5 -5 ------------- Run | Yrd Mat Min Mat Min Exi Min Mat Fac Sto Rec Scr Fac Was Fac Ext Turns Passed 10439 | 3 685 428 487 702 219 52 2012 2051 795 420 1356 320 29 750 130 Spaces Moved 6877 | 3 243 66 217 398 134 32 939 940 308 322 1521 442 97 988 227 Core 22 | . . . . . . . . . . . . . . . 22 Treads 2598 | . . . 217 398 134 32 939 878 . . . . . . . Legs 1569 | 3 243 66 . . . . . . 161 322 687 87 . . . Wheels 209 | . . . . . . . . 62 147 . . . . . . Hover . | . . . . . . . . . . . . . . . . Flight 2479 | . . . . . . . . . . . 834 355 97 988 205 Fastest Speed 26 | 120 120 260 160 160 160 160 160 110 125 130 26 28 28 26 35 Average Speed 111 | 120 245 260 160 160 160 160 163 165 135 130 75 48 28 27 37 Slowest Speed 330 | 120 260 260 160 160 160 160 320 330 200 130 200 130 28 35 100 Overloaded Moves . | . . . . . . . . . . . . . . . . Propulsion Burnouts . | . . . . . . . . . . . . . . . . Robots Hopped 15 | . . . . . . . . . . . . . . 9 6 Potential Cave-ins . | . . . . . . . . . . . . . . . . Cave-ins Triggered . | . . . . . . . . . . . . . . . . Exploration Rate (%) 44 | 2 39 22 33 75 51 12 90 31 58 59 88 13 69 23 45 Regions Visited 15 Branch Regions 8 Pre-discovered Areas 7 | . . . . 1 1 . . . . 5 . . . . . Known Exits Taken 7 | . . . 1 . . . 1 1 1 1 1 . . 1 . Unknown Exits Taken 6 | 1 1 1 . 1 1 1 . . . . . . . . . Scrap Searched 10 | . . . . 2 . . . . . . 8 . . . . Spaces Dug 114 | . . 19 . 16 . . 6 44 5 . . 5 . 19 . Terrain Destroyed 418 | . . 19 . 34 . . 114 104 119 . . 5 . 23 . Melee 58 | . . . . . . . 1 31 5 . . 5 . 16 . Projectile 5 | . . . . . . . . . 5 . . . . . . AOE 355 | . . 19 . 34 . . 113 73 109 . . . . 7 . Terrain Rammed . | . . . . . . . . . . . . . . . . Walls Destroyed . | . . . . . . . . . . . . . . . . Machines Disabled . | . . . . . . . . . . . . . . . . Actions | -11 -10 -10 -9 -9 -9 -8 -8 -7 -7 -7 -7 -5 -5 -5 -5 --------- Run | Yrd Mat Min Mat Min Exi Min Mat Fac Sto Rec Scr Fac Was Fac Ext Total 8913 | 2 299 314 303 436 140 32 1235 1260 535 323 1726 525 98 1424 261 Wait 1165 | . 13 238 25 9 . . 80 142 85 . 147 8 . 411 7 Move 6836 | 2 242 65 216 397 133 31 938 939 307 321 1520 442 96 971 216 Hop 12 | . . . . . . . . . . . . . . 7 5 Pick Up 104 | . 16 . 10 4 3 . 22 12 5 1 19 9 . 2 1 Fast Attach 81 | . 2 . 3 . . . 17 18 9 . 12 14 1 1 4 Attach 37 | . 1 . 6 . . . 9 6 2 . 5 7 . . 1 Detach 12 | . . . . . . . 6 1 . . 1 2 . . 2 Swap 72 | . 1 3 3 2 1 . 20 22 12 . 1 2 . 5 . Drop 123 | . 3 1 7 6 3 . 30 13 9 . 21 22 1 4 3 Fire 296 | . 20 7 30 17 . . 96 50 74 . . . . 2 . Melee 128 | . . . 2 . . . 10 54 22 . . 19 . 17 4 Ram . | . . . . . . . . . . . . . . . . Kick 7 | . 1 . . . . . . . 5 1 . . . . . Crush 13 | . . . 1 1 . 1 7 3 . . . . . . . Escape Stasis 27 | . . . . . . . . . 5 . . . . 4 18 Rewire . | . . . . . . . . . . . . . . . . Trap . | . . . . . . . . . . . . . . . . Miscellaneous . | . . . . . . . . . . . . . . . . Route ------- -11/Scrapyard -10/Materials -10/Mines -9/Materials (discovered 3 exits: *Mat / *Min x2) -9/Mines (discovered 2 exits: *Mat / *Exi) -9/Exiles -8/Mines -8/Materials (discovered 2 exits: *Fac x2) -7/Factory (discovered 4 exits: *Fac / *Sto / *Low x2) -7/Storage -7/Recycling (discovered 2 exits: *Fac / *Scr) -7/Scraptown (discovered 2 exits: *Fac x2) -5/Factory (discovered 4 exits: *Upp x2 / Ext x2) -5/Waste -5/Factory (discovered 4 exits: Upp x2 / *Ext x2) -5/Extension History --------- Turn | Location | Event 1 | -11/Scrapyard | Discovered new exit (range 0) 4 | -11/Scrapyard | Entered Materials 315 | -10/Materials | Build established: Mutant 495 | -10/Materials | Discovered new exit (range 16) 689 | -10/Materials | Entered Mines 694 | -10/Mines | Core integrity fell below 50% 1039 | -10/Mines | Discovered new exit (range 9) 1117 | -10/Mines | Entered Materials 1117 | -9/Materials | Evolved 2 slots: Propulsion x1, Utility x1 1188 | -9/Materials | Identified exit to Mines 1481 | -9/Materials | Discovered new exit (range 10) 1604 | -9/Materials | Entered Mines 1704 | -9/Mines | Learned location of Zion (-6) 1815 | -9/Mines | A weapon hastily lodged in a ceiling crevice suddenly fell to the ground 1878 | -9/Mines | Discovered new exit (range 15) 1931 | -9/Mines | Received a Mining Laser from a helpful Derelict 2263 | -9/Mines | Found the Drone Emporium 2271 | -9/Mines | Found Prototype Device 2297 | -9/Mines | Deemed a non-threat by the Exiles lab entrance 2297 | -9/Mines | Discovered new exit (range 5) 2306 | -9/Mines | Entered Exiles 2306 | -9/Exiles | Accompanied by 1 ally 2336 | -9/Exiles | Led the pair of lost Derelicts to a safe place 2357 | -9/Exiles | Met 8R-AWN 2383 | -9/Exiles | Met EX-HEX 2445 | -9/Exiles | Met EX-DEC 2458 | -9/Exiles | Identified Splice Drone Bay 2508 | -9/Exiles | Discovered new exit (range 14) 2525 | -9/Exiles | Entered Mines 2541 | -8/Mines | Discovered new exit (range 9) 2577 | -8/Mines | Entered Materials 2577 | -8/Materials | Evolved 2 slots: Propulsion x1, Utility x1 2753 | -8/Materials | Lost 3 parts (3n) 2953 | -8/Materials | Lost 4 parts (1n3w) 3020 | -8/Materials | Destroyed 7 combat bots 3402 | -8/Materials | Build established: Scavenger-Mutant 3718 | -8/Materials | Discovered new exit (range 10) 3730 | -8/Materials | Identified exit to Factory 3895 | -8/Materials | Discovered exit to Factory (range 16) 3922 | -8/Materials | Garrison activated, responded to threat 4589 | -8/Materials | Entered Factory 4589 | -7/Factory | Evolved 2 slots: Utility x2 4740 | -7/Factory | Build established: Mutant 4940 | -7/Factory | Discovered new exit (range 5) 4950 | -7/Factory | Identified exit to Factory 5443 | -7/Factory | Discovered new exit (range 8) 5454 | -7/Factory | Identified exit to Lower Caves 5499 | -7/Factory | Build established: Scavenger-Mutant 5861 | -7/Factory | Build established: Mutant 5868 | -7/Factory | Identified exit to Storage 5916 | -7/Factory | Cargo convoy interrupted 6399 | -7/Factory | Lost 3 parts (3n) 6614 | -7/Factory | Lost 3 allies 6640 | -7/Factory | Entered Storage 6922 | -7/Storage | Met a pair of Derelict thieves 6950 | -7/Storage | Garrison activated, responded to threat 7006 | -7/Storage | Destroyed 12 combat bots 7185 | -7/Storage | Lost 3 parts (1p2u) 7288 | -7/Storage | Garrison activated, responded to threat 7432 | -7/Storage | Used back door to open Recycling access 7432 | -7/Storage | Discovered new exit (range 4) 7434 | -7/Storage | Identified exit to Recycling 7435 | -7/Storage | Entered Recycling 7716 | -7/Recycling | Discovered new exit (range 15) 7821 | -7/Recycling | Scanned before Scraplab entrance 7841 | -7/Recycling | Entered Scraplab 7851 | -7/Recycling | Discovered new exit (range 3) 7852 | -7/Recycling | Identified exit to Scraptown 7855 | -7/Recycling | Entered Scraptown 7855 | -7/Scraptown | System corruption cleaned by C-Scrubber 8079 | -7/Scraptown | Discovered new exit (range 11) 8183 | -7/Scraptown | Visited Shadow of the Wyrm 8191 | -7/Scraptown | Visited Bundlers 8267 | -7/Scraptown | Visited CPS Storage 8272 | -7/Scraptown | Visited SPCMW 8281 | -7/Scraptown | Visited UFD Registry 8281 | -7/Scraptown | Registered with UFD as "Protoranger" 8352 | -7/Scraptown | Visited A0-MCA Data Center 8356 | -7/Scraptown | Visited Curators Association 8360 | -7/Scraptown | Visited Observation Area 8403 | -7/Scraptown | Visited Chapter 10 8410 | -7/Scraptown | Visited Analyses Database 8416 | -7/Scraptown | Visited Sword Containment 8422 | -7/Scraptown | Visited Scrap Suit Storage 8433 | -7/Scraptown | Visited Scrapoid Pod Storage 8484 | -7/Scraptown | Given an S rating by A0-MCA 8485 | -7/Scraptown | Found Prototype Processor 8488 | -7/Scraptown | Found A0-MCA's Component Scanner 8509 | -7/Scraptown | Build established: Sprinter 8823 | -7/Scraptown | Build established: Mutant 8895 | -7/Scraptown | Found Scrap Suit 8917 | -7/Scraptown | Visited Derelict Rescue Squad 8925 | -7/Scraptown | Found DRS Beacon 9146 | -7/Scraptown | Met Optimus 9146 | -7/Scraptown | Accepted into 0bPrime 9206 | -7/Scraptown | Discovered new exit (range 5) 9209 | -7/Scraptown | Identified exit to Factory 9211 | -7/Scraptown | Entered Factory 9211 | -5/Factory | Evolved 4 slots: Power x1, Propulsion x2, Utility x1 9386 | -5/Factory | Identified Expert System 9457 | -5/Factory | Discovered new exit (range 13) 9465 | -5/Factory | Identified exit to Upper Caves 9470 | -5/Factory | Identified exit to Extension 9531 | -5/Factory | Sucked down chute 9531 | -5/Factory | Entered Waste 9532 | -5/Waste | Met a frightened Derelict 9535 | -5/Waste | Spotted C-40 Crusher 9536 | -5/Waste | Spotted C-40 Crusher 9542 | -5/Waste | Spotted C-40 Crusher 9546 | -5/Waste | Spotted C-40 Crusher 9547 | -5/Waste | Spotted C-40 Crusher 9556 | -5/Waste | Spotted C-40 Crusher 9556 | -5/Waste | Discovered new exit (range 16) 9560 | -5/Waste | Identified exit to Factory 9560 | -5/Waste | Entered Factory 10052 | -5/Factory | Build established: Hacker-Scout 10310 | -5/Factory | Entered Extension 10335 | -5/Extension | Lost 8 parts (1p4n2u1w) 10345 | -5/Extension | Rescued a captive Derelict 10420 | -5/Extension | Rescued a captive Derelict 10423 | -5/Extension | Rescued a captive Derelict 10424 | -5/Extension | Spotted B-75 Beast 10426 | -5/Extension | Spotted B-75 Beast 10429 | -5/Extension | Core integrity fell below 50% 10436 | -5/Extension | Core integrity fell below 20% 10440 | -5/Extension | Destroyed by Y-64 Sentinel with KE Penetrator Last Messages --------------- 10416_ Dropped Adv. Heat Sink. 10419_ Connecting with Door Terminal... >>Open(Door) Sealed Heavy Doors opened. 10420_ EC-Z4S(l): "Free at last!" 10420_ Connecting with Terminal... 10421_ Field Propulsion Drive destroyed. 10421_ Penetrated by Slug. 10421_ Dropped Adv. ECM Suite. 10422_ Discarded Imp. System Restoration Module. 10428_ Imp. VTOL Module destroyed. Companion Sword: "My slot!" 10431_ Penetrated by Slug. 10431_ IFF Parser destroyed. 10431_ Enh. Optical Array destroyed. 10431_ Critical hit (Blast). 10434_ Slug penetrates Door Terminal. 10434_ Door Terminal disabled. 10437_ K-01 Serf destroyed. 10440_ Penetrated by Slug. Map ----- +----------------------------------------------------+ | ????#^ ""#??????????????????????????????????? | | ????# ! ""#??????????????????????????????????? | | ????# ###??????????????????????????????????? | | ????# % #????????????????????????????????????? | | ????# ! #????????????????????????????????????? | | ??### ##T## #????????????????????????????????????? | | ??#T #### #????????????????????????????????????? | | ??## ##??# #????????????????????????????????????? | | ???# #???# #????????????????????????????????????? | | ???####???# #????????????????????????????????????? | | ??????????# #????????????????????????????????????? | | ??????????# #????????????????????????????????????? | | ??????????# #????????# ??????????????????????????? | | ??????????# #????????# ??????????????????????????? | | ??????????# #?######?# ??????????????????????????? | | ????????### ### ## ### ###???????????????????????? | | ????????#"" " "" ""#???????????????????????? | | ????????#%" " Y " " #???????????????????????? | | ???????## #???????????????????????? | | ???##???" % Y #???????????????????????? | | ####"#### ##############??????????? | | ?????????? | | % ?????????? | | ????????? | | = ????????? | | kR *% @ kRu kut ????????? | | #######"# BB BB #########???????????????? | | ??????### BB BB #???????????????????????? | | ????????# #???????????????????????? | | ????????# % #???????????????????????? | | ????????# % % #???????????????????????? | | ????????###### #"""#######???????????????????????? | | ?????????????###?????????????????????????????????? | | ?????????????????????????????????????????????????? | | | | | | | | | | | | | | | | | | | | | | | | | | | | | | | | | +----------------------------------------------------+ Best States ------------- Heat Dissipation 59 Energy Generation 33 Energy Capacity 525 Matter Stores 300 Matter Capacity 300 Sight Range 22 Robot Scan Range 15 Terrain Scan Density 10 ECM Strength 2 Armor Coverage 300 Power Shielding 66 Evasion (%) 64 Targeting Accuracy 13 Melee Accuracy 8 Target Analysis 6 Recoil Reduction 4 Offensive Hacking 11 Defensive Hacking 14 Item Schematics ----------------- None Robot Schematics ------------------ None Fabricated ------------ Nothing Repaired ---------- Nothing Alien Tech Used ----------------- None Achievements -------------- None Challenges ------------ None Game ------ Seed SingularitySurgeMatterbank Manual? 0 Play Time 01:53:36 Cumulative 501.4 hours Start 2025.05.30 @ 01:14:56 End 2025.05.30 @ 03:41:48 Sessions 1 Manual Loads 0 Difficulty Rogue Special Mode None Game No. 547 Rogue 547 Adventurer 0 Explorer 0 Win Type - Total 14 Types 9/0/4/1/0/0/0/0/0/0 Lore% 75 Gallery% 79 Achievement% 82 Wizard Run 0 Options --------- Layout 0 ASCII 0 Keyboard 0 Movement Numpad Keybinds 0 Fullscreen 1 Font 18/SmallcapsGlow Map View 76x50 Zoom Use 0% Tactical HUD 1 Map Filters NONE Filters NONE Steam 1 RUN: 015a5565-a75b-4359-8ef8-803149560c07